bitfinex/quotes_BTCUSD_20220303
["timestamp","ask_amount","ask_price","bid_price","bid_amount"]
[1646310837426,0.23,43686.0,43682.0,1.0]
[1646310841298,0.234,43686.0,43682.0,1.0]
[1646310841498,0.19481211,43685.0,43682.0,1.0]
[1646310841695,0.234,43686.0,43682.0,1.0]
[1646310842699,0.23,43686.0,43682.0,1.0]
[1646310843298,0.234,43686.0,43682.0,1.0]
[1646310843998,0.229,43686.0,43682.0,1.0]
[1646310844632,0.225,43686.0,43682.0,1.0]
[1646310845131,0.4419579,43686.0,43682.0,1.0]
[1646310845536,0.225,43686.0,43682.0,1.0]
[1646310847335,0.23786753,43685.0,43682.0,1.0]
[1646310847540,0.60083631,43685.0,43682.0,1.0]
[1646310847740,0.41152153,43684.0,43682.0,1.0]
[1646310847940,0.32086878,43683.0,43682.0,1.0]
[1646310848193,0.36296878,43683.0,43682.0,1.0]
[1646310849293,0.42325478,43683.0,43682.0,1.0]
[1646310851294,1.0,43682.0,43668.0,0.05]
[1646310851494,0.057292,43679.0,43668.0,0.05]
[1646310851693,0.32406946,43678.0,43668.0,0.05]
[1646310852141,0.17207337,43676.0,43668.0,0.05]
[1646310852344,0.1802548,43672.0,43668.0,0.05]
[1646310852544,0.057298,43674.0,43672.0,0.0039747]
[1646310853342,0.19926188,43673.0,43672.0,0.0039747]
[1646310853560,0.19926188,43673.0,43661.0,0.07144]
[1646310853561,0.75,43671.0,43661.0,0.07144]
[1646310853745,0.75,43671.0,43661.0,0.06]
[1646310853746,0.11105569,43670.0,43661.0,0.06]
[1646310853948,0.11105569,43670.0,43664.0,0.00088492]
[1646310853949,0.0100769,43669.0,43664.0,0.00088492]
[1646310854144,0.0421,43668.0,43664.0,0.00088492]
[1646310854343,0.19299211,43667.0,43664.0,0.00088492]
[1646310854545,0.23509211,43667.0,43664.0,0.00088492]
[1646310854743,0.23509211,43667.0,43661.0,0.06]
[1646310854948,0.057314,43666.0,43661.0,0.06]
[1646310855347,0.07076065,43666.0,43661.0,0.06]
[1646310855988,0.32473298,43665.0,43661.0,0.06]
[1646310856189,0.24522792,43664.0,43661.0,0.06]
[1646310856389,0.255696,43664.0,43661.0,0.06]
[1646310856791,0.114637,43662.0,43661.0,0.06]
[1646310857190,0.45195773,43662.0,43661.0,0.06]
[1646310857392,0.43936998,43662.0,43661.0,0.06]
[1646310858395,0.45165917,43662.0,43661.0,0.06]
[1646310858792,0.43936998,43662.0,43661.0,0.06]
[1646310859191,0.4515438,43662.0,43661.0,0.06]
[1646310859623,0.6815438,43662.0,43661.0,0.02597166]
[1646310859823,0.70307243,43662.0,43661.0,0.02597166]
[1646310860927,0.71374052,43662.0,43661.0,0.02597166]
[1646310861124,0.85,43661.0,43659.0,0.00022508]
[1646310861329,0.32335304,43660.0,43659.0,0.00022508]
[1646310861528,0.61545304,43660.0,43659.0,0.00022508]
[1646310861733,0.61545304,43660.0,43653.0,0.00090045]
[1646310861734,0.057395,43658.0,43653.0,0.00090045]
[1646310861924,0.0421,43657.0,43653.0,0.00090045]
[1646310862130,0.114667,43656.0,43651.0,0.01]
[1646310862325,0.0421,43655.0,43651.0,0.01]
[1646310863180,0.0421,43655.0,43648.0,0.17863205]
[1646310863181,0.0451,43655.0,43648.0,0.17863205]
[1646310863381,0.0451,43655.0,43648.0,0.12246604]
[1646310863589,0.0451,43655.0,43648.0,0.07456604]
[1646310864582,0.0421,43655.0,43648.0,0.07456604]
[1646310864784,0.0421,43655.0,43648.0,0.06956604]
[1646310865384,0.0451,43655.0,43648.0,0.06956604]
[1646310865598,0.003,43655.0,43649.0,0.26563424]
[1646310865788,0.003,43655.0,43650.0,0.057303]
[1646310866188,0.003,43655.0,43649.0,0.00022393]
[1646310866584,6e-05,43658.0,43649.0,0.00022393]
[1646310866828,6e-05,43658.0,43649.0,0.05730655]
[1646310867030,6e-05,43658.0,43650.0,0.00022393]
[1646310867230,6e-05,43658.0,43655.0,0.18899809]
[1646310867429,6e-05,43658.0,43655.0,0.18399809]
[1646310867628,6e-05,43658.0,43650.0,0.00022393]
[1646310868028,6e-05,43658.0,43649.0,0.02301]
[1646310868229,6e-05,43658.0,43652.0,0.00022392]
[1646310869330,0.00106,43658.0,43650.0,6.14130844]
[1646310869532,0.00106,43658.0,43653.0,0.00022392]
[1646310869729,0.23106,43658.0,43653.0,0.00022392]
[1646310870331,0.23106,43658.0,43657.0,0.20775858]
[1646310870581,0.23006,43658.0,43657.0,0.20775858]
[1646310870780,0.23006,43658.0,43657.0,0.56247358]
[1646310871091,0.19610765,43679.0,43662.0,0.02301]
[1646310871300,0.19610765,43679.0,43669.0,0.02301]
[1646310871301,0.14235977,43672.0,43669.0,0.02301]
[1646310871484,5.977e-05,43672.0,43671.0,0.55211439]
[1646310871680,0.05,43686.0,43679.0,0.22147316]
[1646310871887,0.19610765,43693.0,43680.0,0.31821956]
[1646310872080,0.2893976,43688.0,43679.0,0.25741526]
[1646310872292,0.19368114,43680.0,43673.0,0.0421]
[1646310872484,0.19368114,43680.0,43671.0,0.4444]
[1646310873283,0.06212996,43676.0,43671.0,0.4444]
[1646310873481,0.057294,43678.0,43671.0,0.4444]
[1646310874083,0.057294,43678.0,43675.0,0.00114506]
[1646310874329,0.057294,43678.0,43671.0,0.4444]
[1646310874531,0.12191013,43678.0,43671.0,0.4444]
[1646310874730,0.057294,43678.0,43671.0,0.4444]
[1646310875331,0.26958519,43677.0,43671.0,0.4444]
[1646310875531,0.061294,43678.0,43671.0,0.4444]
[1646310876138,0.004,43678.0,43671.0,0.4444]
[1646310876537,0.004,43678.0,43674.0,0.26350945]
[1646310876841,0.3284316,43686.0,43674.0,0.26350945]
[1646310877035,0.1174,43687.0,43674.0,0.26350945]
[1646310877036,0.31638152,43687.0,43674.0,0.26350945]
[1646310877236,0.37366252,43687.0,43674.0,0.26350945]
[1646310877435,0.004,43686.0,43677.0,0.1865561]
[1646310877638,0.15587007,43684.0,43677.0,0.1865561]
[1646310878077,0.15587007,43684.0,43674.0,0.26350945]
[1646310878278,0.15587007,43684.0,43672.0,0.17657878]
[1646310878279,0.15587007,43684.0,43672.0,0.1193]
[1646310878679,0.31638152,43683.0,43672.0,0.1193]
[1646310879079,0.15556736,43684.0,43672.0,0.28817608]
[1646310879279,0.31638152,43686.0,43676.0,0.21721778]
[1646310879482,0.66543443,43686.0,43676.0,0.21721778]
[1646310879680,0.72271743,43686.0,43676.0,0.21721778]
[1646310879881,0.20765592,43681.0,43672.0,0.28817608]
[1646310880181,0.65886944,43686.0,43673.0,0.02301]
[1646310880384,0.344575,43687.0,43679.0,0.19254561]
[1646310880385,0.23,43687.0,43679.0,0.19254561]
[1646310881182,0.42982175,43687.0,43679.0,0.19254561]
[1646310881381,0.23,43687.0,43680.0,0.21300484]
[1646310882530,0.40012071,43687.0,43680.0,0.21300484]
[1646310882730,0.23,43687.0,43680.0,0.21300484]
[1646310884130,0.23,43687.0,43678.0,0.16044515]
[1646310884931,0.23,43687.0,43675.0,0.11453804]
[1646310885132,0.26082918,43685.0,43676.0,0.22911016]
[1646310885330,0.23,43687.0,43674.0,0.02301]
[1646310885603,0.23,43687.0,43676.0,0.05727592]
[1646310886404,0.20539518,43686.0,43675.0,0.17105644]
[1646310886803,0.21568138,43685.0,43675.0,0.17105644]
[1646310887003,0.21568138,43685.0,43673.0,0.1139]
[1646310887206,0.2054297,43682.0,43673.0,0.1139]
[1646310887405,0.21568138,43685.0,43676.0,0.24297886]
[1646310887604,0.54638152,43687.0,43676.0,0.24297886]
[1646310887605,0.23,43687.0,43676.0,0.24297886]
[1646310887803,0.23,43687.0,43677.0,0.0572724]
[1646310888606,0.23,43687.0,43680.0,0.18178369]
[1646310889007,0.23,43687.0,43677.0,0.0572724]
[1646310889449,0.23,43687.0,43676.0,0.24297886]
[1646310890050,0.23,43687.0,43678.0,0.19288884]
[1646310890649,0.23,43687.0,43676.0,0.24297886]
[1646310890851,0.23,43687.0,43675.0,0.114551]
[1646310891451,0.31638152,43686.0,43675.0,0.057276]
[1646310891658,0.31638152,43686.0,43671.0,0.5686]
[1646310891853,0.20841836,43683.0,43674.0,0.26126748]
[1646310892052,0.52479988,43683.0,43671.0,0.75860323]
[1646310892455,0.21083726,43682.0,43671.0,0.75860323]
[1646310893082,0.21083726,43682.0,43673.0,0.23804364]
[1646310893485,0.14947631,43683.0,43673.0,0.23804364]
[1646310893980,0.64911448,43686.0,43673.0,0.23804364]
[1646310894178,0.79859079,43686.0,43673.0,0.23804364]
[1646310894381,0.31638152,43685.0,43673.0,0.23804364]
[1646310894582,0.16384634,43684.0,43673.0,0.23804364]
[1646310894785,0.16105881,43680.0,43673.0,0.23804364]
[1646310894990,0.33273296,43687.0,43673.0,0.35259764]
[1646310895184,0.14947631,43685.0,43676.0,0.057275]
[1646310895386,0.14947631,43689.0,43677.0,0.02301]
[1646310895584,0.03460428,43691.0,43683.0,0.26078309]
[1646310895585,0.51681355,43691.0,43683.0,0.26078309]
[1646310895886,0.17416435,43688.0,43677.0,0.02301]
[1646310896084,0.17416435,43688.0,43678.0,0.1626128]
[1646310896484,0.31638152,43690.0,43678.0,0.1856228]
[1646310896851,0.12610549,43693.0,43679.0,0.2290795]
[1646310896852,0.33273296,43692.0,43679.0,0.2290795]
[1646310897054,0.33273296,43692.0,43680.0,0.31638152]
[1646310897252,0.33273296,43692.0,43683.0,0.05726665]
[1646310897555,0.15431878,43686.0,43683.0,0.26165788]
[1646310897753,0.28096152,43692.0,43680.0,0.057272]
[1646310897754,0.07118569,43691.0,43680.0,0.057272]
[1646310897957,0.76317079,43692.0,43680.0,0.057272]
[1646310898153,0.33573296,43692.0,43680.0,0.057272]
[1646310898352,0.003,43692.0,43680.0,0.057272]
[1646310898551,0.003,43692.0,43682.0,0.05727]
[1646310898752,0.20283212,43689.0,43682.0,0.05727]
[1646310899452,0.20283212,43689.0,43679.0,0.0572731]
[1646310899453,0.18341328,43688.0,43679.0,0.0572731]
[1646310899858,0.18341328,43688.0,43678.0,0.114539]
[1646310900061,0.18341328,43688.0,43674.0,0.5249]
[1646310900062,0.51614624,43688.0,43674.0,0.5249]
[1646310900253,0.33273296,43688.0,43677.0,0.27862769]
[1646310900457,0.33273296,43687.0,43677.0,0.27862769]
[1646310900684,0.33273296,43687.0,43674.0,0.5249]
[1646310901283,0.33273296,43687.0,43676.0,0.32533482]
[1646310901483,0.2184076,43680.0,43676.0,0.32533482]
[1646310901684,0.2184076,43680.0,43674.0,0.54413952]
[1646310901885,0.2184076,43680.0,43674.0,0.2897]
[1646310902184,0.26843046,43683.0,43674.0,0.2897]
[1646310902385,0.26843046,43683.0,43672.0,0.43093305]
[1646310902588,0.057284,43686.0,43675.0,0.19070623]
[1646310902987,0.29858732,43688.0,43677.0,0.05727554]
[1646310902988,0.36727397,43688.0,43677.0,0.05727554]
[1646310903287,0.17882632,43685.0,43677.0,0.05727554]
[1646310903487,0.03454101,43688.0,43677.0,0.05727554]
[1646310903891,0.03454101,43688.0,43680.0,0.25972051]
[1646310904091,0.23786313,43688.0,43676.0,0.37365752]
[1646310904350,0.16742294,43683.0,43675.0,0.19270623]
[1646310904543,0.057282,43687.0,43675.0,0.19270623]
[1646310904743,0.057282,43687.0,43675.0,0.19070623]
[1646310905145,0.057282,43687.0,43679.0,0.20643188]
[1646310905543,0.19201254,43685.0,43679.0,0.20643188]
[1646310905743,0.23786313,43688.0,43679.0,0.1548068]
[1646310906947,0.03454101,43688.0,43679.0,0.1548068]
[1646310907146,0.03454101,43688.0,43681.0,0.057271]
[1646310907945,0.1948633,43687.0,43681.0,0.057271]
[1646310908408,0.03454101,43688.0,43679.0,0.1548068]
[1646310908604,0.48220927,43690.0,43679.0,0.1548068]
[1646310908804,0.36660652,43690.0,43679.0,0.4701062]
[1646310909205,0.33273296,43689.0,43679.0,0.4701062]
[1646310909404,0.49926117,43689.0,43679.0,0.4701062]
[1646310909603,0.49926117,43689.0,43679.0,0.4711062]
[1646310909803,0.49926117,43689.0,43679.0,0.1558068]
[1646310910006,0.33273296,43689.0,43681.0,0.057271]
[1646310910605,0.56273296,43689.0,43681.0,0.057271]
[1646310910809,0.56273296,43689.0,43679.0,0.1548068]
[1646310911008,0.33273296,43688.0,43679.0,0.1548068]
[1646310911313,0.33273296,43688.0,43679.0,0.4701062]
[1646310911709,0.33273296,43688.0,43681.0,0.057267]
[1646310911973,0.56273296,43689.0,43684.0,0.17052765]
[1646310912174,0.23,43689.0,43685.0,0.3152994]
[1646310912374,0.23,43689.0,43688.0,0.22609664]
[1646310912579,0.14947631,43693.0,43691.0,14.43726704]
[1646310912775,0.14947631,43693.0,43691.0,13.67498702]
[1646310912776,0.02379068,43692.0,43691.0,13.67498702]
[1646310912978,0.11561061,43692.0,43691.0,13.67498702]
[1646310913176,0.00019527,43695.0,43691.0,13.67498702]
[1646310913376,0.004577,43694.0,43691.0,13.67498702]
[1646310913582,0.006,43692.0,43691.0,13.67498702]
[1646310915180,0.011,43699.0,43691.0,13.73223302]
[1646310915486,7.434e-05,43695.0,43692.0,0.32093368]
[1646310915686,7.434e-05,43695.0,43694.0,0.17718377]
[1646310915889,7.434e-05,43695.0,43694.0,0.52112745]
[1646310916090,7.434e-05,43695.0,43694.0,0.56322745]
[1646310916286,0.002,43697.0,43694.0,0.54021745]
[1646310916488,0.002,43697.0,43695.0,0.25052166]
[1646310916688,0.0021966,43697.0,43696.0,0.32093368]
[1646310916887,0.0021966,43697.0,43694.0,0.0421]
[1646310916888,0.0001966,43697.0,43694.0,0.0421]
[1646310917091,0.001,43701.0,43695.0,0.9]
[1646310917388,0.001,43701.0,43695.0,1.33542408]
[1646310917991,0.001,43701.0,43696.0,0.43193384]
[1646310918794,0.001,43701.0,43696.0,0.23132847]
[1646310918991,0.00107845,43700.0,43696.0,0.23132847]
[1646310919670,0.00307845,43700.0,43696.0,0.23132847]
[1646310919869,0.003,43700.0,43696.0,0.23132847]
[1646310920270,0.00321558,43700.0,43696.0,0.23132847]
[1646310920675,0.00321558,43700.0,43691.0,13.67798702]
[1646310920676,0.004577,43699.0,43691.0,13.67798702]
[1646310920970,0.004577,43699.0,43691.0,13.67498702]
[1646310921177,0.061841,43699.0,43691.0,13.67498702]
[1646310921470,0.06205658,43699.0,43691.0,13.67498702]
[1646310921670,0.07110215,43699.0,43691.0,13.67498702]
[1646310921869,0.05295325,43697.0,43691.0,13.67498702]
[1646310922080,0.004577,43696.0,43691.0,13.67498702]
[1646310922270,0.06652515,43699.0,43691.0,13.67498702]
[1646310922271,0.06588657,43699.0,43691.0,13.67498702]
[1646310922471,0.32093368,43698.0,43691.0,13.67498702]
[1646310922671,0.18777531,43697.0,43691.0,13.67498702]
[1646310923290,0.18777531,43697.0,43692.0,0.26114182]
[1646310923491,0.18777531,43697.0,43691.0,13.67498702]
[1646310923691,0.19477531,43697.0,43691.0,13.67498702]
[1646310924793,0.18777531,43697.0,43691.0,13.67498702]
[1646310925592,0.006,43697.0,43691.0,13.67498702]
[1646310926091,0.001,43697.0,43691.0,13.67498702]
[1646310926837,0.09573021,43699.0,43691.0,13.67498702]
[1646310927037,0.09552861,43699.0,43691.0,13.67498702]
[1646310927440,0.09573022,43699.0,43691.0,13.67498702]
[1646310927840,0.20915858,43697.0,43691.0,13.67498702]
[1646310928041,0.09573022,43699.0,43692.0,0.32093368]
[1646310928042,0.03888922,43699.0,43692.0,0.32093368]
[1646310928246,0.15047631,43700.0,43692.0,0.32093368]
[1646310928444,0.001,43700.0,43692.0,0.32093368]
[1646310928643,0.00019792,43699.0,43692.0,0.32093368]
[1646310929041,0.00019792,43699.0,43693.0,0.17521353]
[1646310929247,0.00019792,43699.0,43698.0,0.27732798]
[1646310929444,0.001,43700.0,43698.0,0.27732798]
[1646310929641,0.004,43699.0,43698.0,0.27732798]
[1646310930689,0.004,43699.0,43693.0,0.29591353]
[1646310930890,0.001,43700.0,43693.0,0.29591353]
[1646310931589,0.001,43700.0,43694.0,0.34430856]
[1646310931790,0.001,43700.0,43695.0,0.32093368]
[1646310932390,0.00019562,43699.0,43695.0,0.34394368]
[1646310932598,0.00019562,43699.0,43695.0,0.37818065]
[1646310933190,0.001,43700.0,43695.0,0.37818065]
[1646310933391,0.001,43700.0,43695.0,0.32093368]
[1646310933590,0.00119562,43699.0,43695.0,0.32093368]
[1646310933992,0.00119562,43699.0,43695.0,0.37817919]
[1646310934436,0.001,43699.0,43695.0,0.37817919]
[1646310934634,0.00119562,43699.0,43695.0,0.37817919]
[1646310935633,0.001,43699.0,43695.0,0.38117919]
[1646310935835,0.0011958,43699.0,43695.0,0.38117919]
[1646310936835,0.001,43700.0,43695.0,0.37817919]
[1646310937068,0.001,43700.0,43693.0,0.1207]
[1646310937069,0.00019578,43699.0,43693.0,0.1207]
[1646310937238,0.00019578,43699.0,43691.0,13.67498702]
[1646310938088,0.058262,43700.0,43693.0,0.24250347]
[1646310938290,0.00019578,43699.0,43692.0,0.32093368]
[1646310938490,0.00019578,43699.0,43691.0,13.67498702]
[1646310938893,0.00019578,43699.0,43692.0,0.32093368]
[1646310939294,0.058262,43700.0,43692.0,0.32093368]
[1646310939490,0.00019577,43699.0,43692.0,0.32093368]
[1646310939691,0.00019577,43699.0,43695.0,0.21767498]
[1646310939895,0.00019577,43699.0,43692.0,0.001]
[1646310940190,0.00019577,43699.0,43692.0,0.32193368]
[1646310940392,0.001,43700.0,43693.0,0.057255]
[1646310940599,0.00019576,43699.0,43693.0,0.057255]
[1646310940993,0.00019576,43699.0,43694.0,0.21304122]
[1646310941194,0.00019576,43699.0,43695.0,0.32093368]
[1646310941396,0.00019576,43699.0,43696.0,0.21816117]
[1646310941599,0.00019576,43703.0,43697.0,0.4]
[1646310941849,0.00019576,43703.0,43698.0,0.37818268]
[1646310941850,0.00019577,43699.0,43698.0,0.37818268]
[1646310942747,0.00019576,43703.0,43698.0,0.37818268]
[1646310943148,0.00019576,43703.0,43698.0,0.32093368]
[1646310943349,0.00019576,43703.0,43696.0,0.21816117]
[1646310943751,0.00519576,43703.0,43696.0,0.21816117]
[1646310944252,7.371e-05,43702.0,43696.0,0.21816117]
[1646310944648,7.371e-05,43702.0,43693.0,0.32093368]
[1646310944851,7.371e-05,43702.0,43692.0,0.44503368]
[1646310945250,0.00019576,43703.0,43692.0,0.44503368]
[1646310945586,0.00021098,43701.0,43694.0,0.057253]
[1646310945786,0.00021098,43701.0,43695.0,0.32093368]
[1646310946390,0.00019576,43703.0,43695.0,0.32093368]
[1646310946791,0.00021098,43701.0,43695.0,0.32093368]
[1646310947590,0.00019576,43703.0,43695.0,0.32093368]
[1646310947789,0.00021047,43701.0,43695.0,0.43542368]
[1646310948487,0.00021047,43701.0,43695.0,0.32093368]
[1646310948888,0.00019576,43703.0,43695.0,0.32093368]
[1646310949091,0.00021047,43701.0,43695.0,0.32093368]
[1646310949847,0.00019576,43699.0,43695.0,0.32093368]
[1646310950443,0.00019576,43699.0,43696.0,0.05724946]
[1646310953090,0.00019576,43699.0,43695.0,0.32093368]
[1646310953691,0.00719576,43699.0,43695.0,0.32093368]
[1646310953891,0.00719576,43699.0,43695.0,0.56179043]
[1646310954189,0.00719576,43699.0,43695.0,0.61904276]
[1646310955089,0.00019576,43699.0,43695.0,0.61904276]
[1646310955290,0.00019576,43699.0,43695.0,0.37818601]
[1646310955690,0.00519576,43699.0,43695.0,0.37818601]
[1646310956292,0.00519576,43699.0,43696.0,0.23235079]
[1646310956945,0.00019576,43699.0,43696.0,0.28959525]
[1646310958645,0.00019576,43699.0,43696.0,0.05724446]
[1646310959047,0.00019576,43699.0,43695.0,0.32093368]
[1646310959645,0.00619576,43699.0,43695.0,0.32093368]
[1646310959848,0.00619576,43699.0,43693.0,0.1965048]
[1646310960248,0.00619576,43699.0,43692.0,0.44503368]
[1646310960449,0.00619576,43699.0,43692.0,0.1241]
[1646310961494,0.00019576,43699.0,43692.0,0.1241]
[1646310961697,0.00319576,43699.0,43692.0,0.1241]
[1646310962601,0.00319576,43699.0,43691.0,13.67498702]
[1646310962602,0.057262,43698.0,43691.0,13.67498702]
[1646310963601,0.03393378,43699.0,43691.0,13.67498702]
[1646310963802,0.03393378,43699.0,43692.0,0.49951326]
[1646310963803,0.004,43698.0,43692.0,0.49951326]
[1646310964440,0.004,43698.0,43692.0,0.55676949]
[1646310965042,0.03393378,43699.0,43692.0,0.55676949]
[1646310965242,0.03393378,43699.0,43692.0,0.67127049]
[1646310966040,0.03393378,43699.0,43698.0,0.2709431]
[1646310966241,0.03393378,43699.0,43692.0,0.67127049]
[1646310966441,0.03393378,43699.0,43692.0,0.55676949]
[1646310966841,0.03393378,43699.0,43693.0,0.05725]
[1646310967640,0.03393378,43699.0,43694.0,0.28032934]
[1646310969694,0.03893378,43699.0,43694.0,0.28032934]
[1646310970896,0.03393378,43699.0,43695.0,0.32093368]
[1646310971296,0.03393378,43699.0,43694.0,0.28032934]
[1646310973248,0.03393378,43699.0,43695.0,0.32093368]
[1646310973648,0.03893378,43699.0,43695.0,0.32093368]
[1646310975049,0.03393378,43699.0,43695.0,0.32093368]
[1646310976907,0.03393378,43699.0,43695.0,0.43543768]
[1646310977106,0.03393378,43699.0,43695.0,0.54994218]
[1646310977309,0.03393378,43699.0,43695.0,0.2290085]
[1646310977706,0.03893378,43699.0,43695.0,0.2290085]
[1646310978410,0.03893378,43699.0,43695.0,0.1145045]
[1646310980961,0.03393378,43699.0,43695.0,0.1145045]
[1646310981760,0.03893378,43699.0,43695.0,0.1145045]
[1646310982959,0.03393378,43699.0,43695.0,0.1145045]
[1646310983907,0.03893378,43699.0,43695.0,0.43543818]
[1646310984309,0.03893378,43699.0,43695.0,0.54993618]
[1646310984506,0.03893378,43699.0,43697.0,0.057248]
[1646310985109,0.03393378,43699.0,43697.0,0.057248]
[1646310986859,0.03393378,43699.0,43698.0,0.47697506]
[1646310987261,0.00019576,43699.0,43698.0,0.47697506]
[1646310987561,0.00019576,43701.0,43698.0,0.47697506]
[1646310987760,0.006,43699.0,43698.0,0.47697506]
[1646310988960,0.00019576,43701.0,43698.0,0.47697506]
[1646310989763,0.002,43701.0,43698.0,0.47697506]
[1646310991015,0.001,43703.0,43698.0,0.47687985]
[1646310991214,0.00019576,43702.0,43698.0,0.47687985]
[1646310992021,0.002,43703.0,43698.0,0.47687985]
[1646310992219,0.002,43703.0,43702.0,0.26467525]
[1646310992416,0.002,43703.0,43701.0,0.0572484]
[1646310992417,0.00019576,43702.0,43701.0,0.0572484]
[1646310993417,0.001,43703.0,43701.0,0.0572484]
[1646310993818,0.001,43703.0,43701.0,0.32819278]
[1646310994644,0.001,43703.0,43701.0,0.0572484]
[1646310995748,0.001,43703.0,43701.0,0.26124114]
[1646310996648,0.001,43703.0,43701.0,0.0572484]
[1646310997644,0.001,43703.0,43702.0,0.21397115]
[1646310997844,0.008,43703.0,43702.0,0.21397115]
[1646310998897,0.001,43703.0,43702.0,0.21397115]
[1646310999300,0.001,43703.0,43702.0,0.53490483]
[1646310999701,0.001,43703.0,43702.0,0.21397115]
[1646310999900,0.001,43703.0,43702.0,0.53490483]
[1646311001202,0.001,43703.0,43702.0,0.21397115]
[1646311003562,0.001,43703.0,43702.0,0.53490483]
[1646311003760,0.006,43703.0,43702.0,0.53490483]
[1646311004359,0.0055586,43703.0,43702.0,0.53490483]
[1646311004960,0.0005586,43703.0,43702.0,0.53490483]
[1646311005363,0.0005586,43703.0,43702.0,0.21397115]
[1646311005615,0.0005586,43703.0,43702.0,0.53490483]
[1646311005820,0.0005586,43703.0,43702.0,0.21397115]
[1646311006716,0.0005586,43703.0,43702.0,0.53490483]
[1646311006916,0.0005586,43703.0,43702.0,0.21397115]
[1646311007820,0.0055586,43703.0,43702.0,0.21397115]
[1646311008620,0.009,43709.0,43704.0,1.02301]
[1646311008823,0.009,43709.0,43706.0,0.02301]
[1646311008824,0.007,43709.0,43706.0,0.02301]
[1646311009026,0.001,43712.0,43709.0,1.0]
[1646311009224,0.002,43719.0,43710.0,0.32093368]
[1646311009225,0.03546563,43719.0,43710.0,0.32093368]
[1646311009669,0.03546563,43719.0,43717.0,0.19655982]
[1646311010069,0.03546563,43719.0,43717.0,0.44262162]
[1646311010269,0.002,43719.0,43717.0,0.44262162]
[1646311011068,0.001,43722.0,43718.0,0.32093368]
[1646311011879,0.001,43722.0,43718.0,0.43535086]
[1646311012278,0.001,43722.0,43720.0,0.17163223]
[1646311013111,0.00122447,43722.0,43720.0,0.17163223]
[1646311013312,0.00122447,43722.0,43718.0,0.11441718]
[1646311013711,0.001,43722.0,43718.0,0.11441718]
[1646311014112,0.00122447,43722.0,43718.0,0.11441718]
[1646311014914,0.001,43722.0,43720.0,0.25216083]
[1646311015112,0.001,43722.0,43720.0,0.36659649]
[1646311015311,0.00122447,43722.0,43720.0,0.36659649]
[1646311015511,0.00122447,43722.0,43720.0,0.11443566]
[1646311016115,0.001,43722.0,43720.0,0.11443566]
[1646311016513,0.001,43722.0,43720.0,0.11398246]
[1646311019076,0.001,43722.0,43718.0,0.11441718]
[1646311020079,0.00119487,43722.0,43718.0,0.34346744]
[1646311020275,0.00119487,43722.0,43718.0,0.11441718]
[1646311020486,0.05842387,43722.0,43712.0,1.07488897]
[1646311020898,0.001,43722.0,43713.0,0.057229]
[1646311021297,0.00019487,43719.0,43713.0,0.057229]
[1646311021498,0.00019487,43719.0,43716.0,0.28805915]
[1646311021900,0.00019487,43719.0,43716.0,0.32093368]
[1646311022097,0.001,43722.0,43716.0,0.32093368]
[1646311022298,0.00019609,43720.0,43716.0,0.37815268]
[1646311022498,0.00019609,43720.0,43716.0,0.43537129]
[1646311023299,0.001,43722.0,43716.0,0.43537129]
[1646311023702,0.00019579,43720.0,43716.0,0.43537129]
[1646311023902,0.00019579,43720.0,43718.0,0.25897024]
[1646311024561,0.21912709,43722.0,43716.0,0.38115229]
[1646311024761,0.21912709,43722.0,43716.0,0.06021861]
[1646311024762,0.00019579,43721.0,43716.0,0.06021861]
[1646311025164,0.00019579,43721.0,43716.0,0.05721861]
[1646311025765,0.001,43722.0,43716.0,0.05721861]
[1646311025766,0.21257584,43722.0,43716.0,0.05721861]
[1646311025963,0.05581599,43720.0,43713.0,0.171529]
[1646311026168,0.00019572,43721.0,43708.0,0.11446812]
[1646311026765,0.20681375,43721.0,43711.0,0.22896962]
[1646311026963,0.20661803,43721.0,43711.0,0.22896962]
[1646311027163,0.00019571,43717.0,43711.0,0.22896962]
[1646311027364,0.057237,43716.0,43712.0,0.05723398]
[1646311028425,0.05743271,43716.0,43712.0,0.05723398]
[1646311029426,0.057237,43716.0,43712.0,0.05723398]
[1646311029626,0.05243271,43716.0,43708.0,0.11423258]
[1646311029926,0.05243271,43716.0,43705.0,0.2388761]
[1646311030124,0.05243271,43716.0,43705.0,0.55980978]
[1646311030531,0.4309785,43715.0,43706.0,0.25309515]
[1646311030725,0.00019573,43714.0,43705.0,0.2388761]
[1646311031127,0.00019573,43714.0,43708.0,0.057236]
[1646311031724,2.52458109,43715.0,43708.0,0.057236]
[1646311031947,0.00019573,43713.0,43708.0,0.057236]
[1646311032151,0.057245,43710.0,43702.0,0.11448443]
[1646311032746,0.20442412,43708.0,43702.0,0.11448443]
[1646311033156,0.20442412,43708.0,43701.0,0.11448663]
[1646311033157,0.29407412,43708.0,43701.0,0.11448663]
[1646311033349,0.21251221,43703.0,43695.0,0.11449969]
[1646311033552,0.21251221,43703.0,43695.0,0.43543337]
[1646311033755,0.057252,43705.0,43695.0,0.43543337]
[1646311034753,0.28630004,43705.0,43695.0,0.43543337]
[1646311035352,0.28630004,43705.0,43695.0,0.11449969]
[1646311036021,0.057252,43705.0,43695.0,0.11449969]
[1646311037122,0.22182639,43704.0,43695.0,0.11449969]
[1646311037324,0.057252,43705.0,43692.0,0.05680882]
[1646311037924,0.057252,43705.0,43695.0,0.001]
[1646311038325,0.057264,43700.0,43695.0,0.001]
[1646311039125,0.057264,43700.0,43691.0,13.67498702]
[1646311039364,0.17057948,43692.0,43691.0,13.67498702]
[1646311039564,0.0421,43699.0,43691.0,13.67498702]
[1646311039764,0.39732955,43694.0,43691.0,13.67498702]
[1646311039968,0.00405959,43692.0,43691.0,13.67498702]
[1646311040166,0.10626,43692.0,43691.0,13.67498702]
[1646311040365,0.43125327,43692.0,43691.0,13.67498702]
[1646311040574,0.28172158,43692.0,43691.0,13.33126402]
[1646311040763,0.28172158,43692.0,43691.0,13.30148763]
[1646311040764,0.38172158,43692.0,43691.0,13.30148763]
[1646311041164,0.51170447,43692.0,43691.0,12.95776163]
[1646311041365,0.51170447,43692.0,43691.0,2.30481042]
[1646311041366,0.81772636,43692.0,43691.0,2.30481042]
[1646311041566,0.81772636,43692.0,43683.0,0.00019583]
[1646311041567,1.0,43691.0,43683.0,0.00019583]
[1646311041765,1.0,43691.0,43683.0,0.00097916]
[1646311041766,0.15,43685.0,43683.0,0.00097916]
[1646311041965,0.85,43683.0,43666.0,0.29574073]
[1646311042164,0.1921,43682.0,43666.0,0.01144]